[Event "Titled Tuesday Blitz November 16 2021"]
[White "Bortnyk, Olexandr"]
[Black "Bernadskiy, Vitaliy"]
[WhiteFideId "14120828"]
[BlackFideId "14100371"]
[WhiteElo "2723"]
[BlackElo "2510"]
[Result "1/2-1/2"]
[Round "04"]
[TimeControl "180+1"]
[Date "2021.11.16"]
[WhiteClock "0:00:04"]
[BlackClock "0:00:07"]

1. e4 {[%clk 0:03:00]}  a6 {[%clk 0:03:00]} 2. d4 {[%clk 0:02:55]}  e6 {[%clk 0:03:00]} 3. c3 {[%clk 0:02:53]}  d5 {[%clk 0:02:58]} 4. e5 {[%clk 0:02:38]}  c5 {[%clk 0:02:55]} 5. f4 {[%clk 0:02:20]}  Bd7 {[%clk 0:02:54]} 6. Nf3 {[%clk 0:02:19]}  cxd4 {[%clk 0:02:53]} 7. cxd4 {[%clk 0:02:20]}  Bb5 {[%clk 0:02:53]} 8. Nc3 {[%clk 0:02:15]}  Bb4 {[%clk 0:02:52]} 9. Bxb5+ {[%clk 0:02:12]}  axb5 {[%clk 0:02:53]} 10. O-O {[%clk 0:02:12]}  Bxc3 {[%clk 0:02:51]} 11. bxc3 {[%clk 0:02:13]}  Ne7 {[%clk 0:02:51]} 12. Qb3 {[%clk 0:02:08]}  Ra5 {[%clk 0:02:50]} 13. Ba3 {[%clk 0:02:07]}  O-O {[%clk 0:02:48]} 14. Bb4 {[%clk 0:02:06]}  Ra8 {[%clk 0:02:45]} 15. Bxe7 {[%clk 0:02:06]}  Qxe7 {[%clk 0:02:46]} 16. Qxb5 {[%clk 0:02:07]}  Rc8 {[%clk 0:02:45]} 17. Rfb1 {[%clk 0:01:50]}  Rc7 {[%clk 0:02:29]} 18. a4 {[%clk 0:01:45]}  Na6 {[%clk 0:02:25]} 19. Rb3 {[%clk 0:01:40]}  Rac8 {[%clk 0:02:24]} 20. Rab1 {[%clk 0:01:33]}  h6 {[%clk 0:02:21]} 21. h3 {[%clk 0:01:31]}  g6 {[%clk 0:02:01]} 22. Qb6 {[%clk 0:01:18]}  Rd7 {[%clk 0:01:49]} 23. Ne1 {[%clk 0:01:14]}  Qh4 {[%clk 0:01:43]} 24. Nd3 {[%clk 0:00:38]}  Qg3 {[%clk 0:01:43]} 25. Nf2 {[%clk 0:00:38]}  Qxf4 {[%clk 0:01:41]} 26. Ng4 {[%clk 0:00:38]}  Kg7 {[%clk 0:01:40]} 27. Rf1 {[%clk 0:00:27]}  Qg5 {[%clk 0:01:40]} 28. Rf3 {[%clk 0:00:21]}  Rdc7 {[%clk 0:01:38]} 29. Qa7 {[%clk 0:00:16]}  Qe7 {[%clk 0:01:29]} 30. Nf6 {[%clk 0:00:14]}  Nb8 {[%clk 0:01:27]} 31. Qb6 {[%clk 0:00:13]}  Nd7 {[%clk 0:00:57]} 32. Qd6 {[%clk 0:00:05]}  Kf8 {[%clk 0:00:57]} 33. Nh7+ {[%clk 0:00:05]}  Ke8 {[%clk 0:00:57]} 34. Rb1 {[%clk 0:00:03]}  b6 {[%clk 0:00:43]} 35. Rxb6 {[%clk 0:00:01]}  Nxb6 {[%clk 0:00:38]} 36. Qxb6 {[%clk 0:00:02]}  Rc6 {[%clk 0:00:27]} 37. Qb5 {[%clk 0:00:03]}  f5 {[%clk 0:00:24]} 38. Nf6+ {[%clk 0:00:03]}  Kf7 {[%clk 0:00:24]} 39. Qb2 {[%clk 0:00:03]}  Qc7 {[%clk 0:00:20]} 40. Qd2 {[%clk 0:00:03]}  Kg7 {[%clk 0:00:21]} 41. Rg3 {[%clk 0:00:02]}  Rxc3 {[%clk 0:00:21]} 42. Nh5+ {[%clk 0:00:03]}  Kh7 {[%clk 0:00:17]} 43. Nf6+ {[%clk 0:00:03]}  Kg7 {[%clk 0:00:17]} 44. Nh5+ {[%clk 0:00:04]}  Kh7 {[%clk 0:00:07]} 45. Nf6+ {[%clk 0:00:04]}  Kg7 {[%clk 0:00:07]} 1/2-1/2


[Site "https://www.chess.com"]

[Event "Titled Tuesday Blitz November 16 2021"]
[White "Costachi, Mihnea"]
[Black "Paravyan, David"]
[WhiteFideId "1217518"]
[BlackFideId "4194985"]
[WhiteElo "2482"]
[BlackElo "2639"]
[Result "0-1"]
[Round "04"]
[TimeControl "180+1"]
[Date "2021.11.16"]
[WhiteClock "0:00:29"]
[BlackClock "0:00:08"]

1. d4 {[%clk 0:03:00]}  Nf6 {[%clk 0:02:59]} 2. c4 {[%clk 0:02:59]}  g6 {[%clk 0:02:59]} 3. Nc3 {[%clk 0:02:59]}  d5 {[%clk 0:03:00]} 4. Nf3 {[%clk 0:02:59]}  Bg7 {[%clk 0:03:00]} 5. h4 {[%clk 0:03:00]}  dxc4 {[%clk 0:02:52]} 6. e4 {[%clk 0:02:59]}  c5 {[%clk 0:02:52]} 7. d5 {[%clk 0:02:59]}  b5 {[%clk 0:02:45]} 8. h5 {[%clk 0:02:59]}  Nxh5 {[%clk 0:02:45]} 9. Nxb5 {[%clk 0:02:57]}  Bg4 {[%clk 0:02:43]} 10. Bxc4 {[%clk 0:02:55]}  Nd7 {[%clk 0:02:42]} 11. Be2 {[%clk 0:02:41]}  Qb8 {[%clk 0:02:30]} 12. d6 {[%clk 0:02:35]}  O-O {[%clk 0:02:29]} 13. dxe7 {[%clk 0:02:22]}  Re8 {[%clk 0:02:29]} 14. Bg5 {[%clk 0:02:22]}  h6 {[%clk 0:02:07]} 15. Rh4 {[%clk 0:02:00]}  Bxf3 {[%clk 0:01:58]} 16. gxf3 {[%clk 0:01:57]}  hxg5 {[%clk 0:01:55]} 17. Rxh5 {[%clk 0:01:57]}  Rxe7 {[%clk 0:01:13]} 18. Rh1 {[%clk 0:01:49]}  a6 {[%clk 0:00:49]} 19. Qd6 {[%clk 0:01:37]}  Qf8 {[%clk 0:00:22]} 20. Nc3 {[%clk 0:01:30]}  Be5 {[%clk 0:00:11]} 21. Qc6 {[%clk 0:01:24]}  Nf6 {[%clk 0:00:11]} 22. Bc4 {[%clk 0:01:20]}  Kg7 {[%clk 0:00:10]} 23. Ke2 {[%clk 0:01:17]}  Rb8 {[%clk 0:00:09]} 24. Rab1 {[%clk 0:01:14]}  Rc7 {[%clk 0:00:08]} 25. Qxa6 {[%clk 0:01:11]}  Rcb7 {[%clk 0:00:07]} 26. Na4 {[%clk 0:00:59]}  Qe7 {[%clk 0:00:07]} 27. b3 {[%clk 0:00:57]}  Bd4 {[%clk 0:00:07]} 28. Bd3 {[%clk 0:00:45]}  g4 {[%clk 0:00:08]} 29. Qc4 {[%clk 0:00:39]}  gxf3+ {[%clk 0:00:07]} 30. Kxf3 {[%clk 0:00:39]}  Nd7 {[%clk 0:00:07]} 31. Ke2 {[%clk 0:00:35]}  Ne5 {[%clk 0:00:07]} 32. Qc2 {[%clk 0:00:36]}  Qf6 {[%clk 0:00:08]} 33. Rh3 {[%clk 0:00:33]}  Qxf2+ {[%clk 0:00:08]} 34. Kd1 {[%clk 0:00:34]}  Qg1+ {[%clk 0:00:07]} 35. Bf1 {[%clk 0:00:29]}  Qxf1+ {[%clk 0:00:08]} 36. Kd2 {[%clk 0:00:29]}  Qxh3 {[%clk 0:00:08]} 0-1


[Site "https://www.chess.com"]

[Event "Titled Tuesday Blitz November 16 2021"]
[White "Drygalov, Andrey"]
[Black "Tsvetkov, Andrey"]
[WhiteFideId "24171735"]
[BlackFideId "34139360"]
[WhiteElo "2540"]
[BlackElo "2280"]
[Result "0-1"]
[Round "04"]
[TimeControl "180+1"]
[Date "2021.11.16"]
[WhiteClock "0:00:03"]
[BlackClock "0:00:44"]

1. e4 {[%clk 0:03:00]}  c5 {[%clk 0:02:59]} 2. Nf3 {[%clk 0:03:00]}  d6 {[%clk 0:02:59]} 3. d4 {[%clk 0:02:59]}  cxd4 {[%clk 0:03:00]} 4. Nxd4 {[%clk 0:03:00]}  Nf6 {[%clk 0:03:00]} 5. Nc3 {[%clk 0:03:00]}  a6 {[%clk 0:03:00]} 6. Be3 {[%clk 0:03:01]}  Ng4 {[%clk 0:03:00]} 7. Bc1 {[%clk 0:03:01]}  Nf6 {[%clk 0:03:01]} 8. f3 {[%clk 0:03:01]}  e5 {[%clk 0:03:00]} 9. Nb3 {[%clk 0:03:01]}  Be6 {[%clk 0:03:01]} 10. Be3 {[%clk 0:03:01]}  Be7 {[%clk 0:03:01]} 11. Qd2 {[%clk 0:03:01]}  Nbd7 {[%clk 0:03:02]} 12. O-O-O {[%clk 0:03:00]}  b5 {[%clk 0:03:02]} 13. g4 {[%clk 0:02:56]}  Nb6 {[%clk 0:03:02]} 14. g5 {[%clk 0:02:54]}  Nh5 {[%clk 0:03:03]} 15. Nd5 {[%clk 0:02:53]}  Nxd5 {[%clk 0:03:03]} 16. exd5 {[%clk 0:02:54]}  Bd7 {[%clk 0:03:03]} 17. Na5 {[%clk 0:02:48]}  Qc7 {[%clk 0:03:04]} 18. Kb1 {[%clk 0:02:44]}  O-O {[%clk 0:03:03]} 19. Bd3 {[%clk 0:02:37]}  Rab8 {[%clk 0:03:03]} 20. Be4 {[%clk 0:02:35]}  f5 {[%clk 0:03:02]} 21. gxf6 {[%clk 0:02:34]}  Nxf6 {[%clk 0:03:03]} 22. Rhg1 {[%clk 0:02:27]}  b4 {[%clk 0:02:53]} 23. Nc6 {[%clk 0:02:23]}  Bxc6 {[%clk 0:02:49]} 24. dxc6 {[%clk 0:02:22]}  Nxe4 {[%clk 0:02:48]} 25. Qd5+ {[%clk 0:02:22]}  Kh8 {[%clk 0:02:47]} 26. fxe4 {[%clk 0:02:19]}  Rbc8 {[%clk 0:02:02]} 27. Qe6 {[%clk 0:01:15]}  Rf6 {[%clk 0:01:42]} 28. Qd7 {[%clk 0:01:13]}  Bf8 {[%clk 0:01:24]} 29. Bg5 {[%clk 0:00:59]}  Rf7 {[%clk 0:01:11]} 30. Qe6 {[%clk 0:00:55]}  Rf2 {[%clk 0:01:11]} 31. Qd5 {[%clk 0:00:16]}  Qxc6 {[%clk 0:01:03]} 32. Qxc6 {[%clk 0:00:15]}  Rxc6 {[%clk 0:01:04]} 33. Rgf1 {[%clk 0:00:16]}  Rcxc2 {[%clk 0:00:59]} 34. Rxf2 {[%clk 0:00:05]}  Rxf2 {[%clk 0:01:00]} 35. h4 {[%clk 0:00:03]}  h6 {[%clk 0:00:59]} 36. Bd2 {[%clk 0:00:03]}  a5 {[%clk 0:00:54]} 37. a3 {[%clk 0:00:03]}  bxa3 {[%clk 0:00:46]} 38. bxa3 {[%clk 0:00:04]}  a4 {[%clk 0:00:46]} 39. Bb4 {[%clk 0:00:05]}  Re2 {[%clk 0:00:47]} 40. Bxd6 {[%clk 0:00:05]}  Bxd6 {[%clk 0:00:48]} 41. Rxd6 {[%clk 0:00:05]}  Rxe4 {[%clk 0:00:48]} 42. Re6 {[%clk 0:00:05]}  Rxh4 {[%clk 0:00:44]} 43. Rxe5 {[%clk 0:00:05]}  Rc4 {[%clk 0:00:44]} 44. Kb2 {[%clk 0:00:05]}  Kh7 {[%clk 0:00:43]} 45. Re6 {[%clk 0:00:05]}  h5 {[%clk 0:00:42]} 46. Rd6 {[%clk 0:00:05]}  h4 {[%clk 0:00:43]} 47. Re6 {[%clk 0:00:03]}  g5 {[%clk 0:00:42]} 48. Rd6 {[%clk 0:00:03]}  h3 {[%clk 0:00:43]} 49. Re6 {[%clk 0:00:03]}  g4 {[%clk 0:00:43]} 50. Re7+ {[%clk 0:00:02]}  Kg6 {[%clk 0:00:43]} 51. Re2 {[%clk 0:00:02]}  g3 {[%clk 0:00:43]} 52. Rd2 {[%clk 0:00:02]}  h2 {[%clk 0:00:43]} 53. Rd6+ {[%clk 0:00:03]}  Kh5 {[%clk 0:00:44]} 54. Rd5+ {[%clk 0:00:03]}  Kh4 {[%clk 0:00:44]} 55. Rd1 {[%clk 0:00:03]}  g2 {[%clk 0:00:44]} 56. Rd8 {[%clk 0:00:03]}  g1=Q {[%clk 0:00:44]} 0-1


[Site "https://www.chess.com"]

[Event "Titled Tuesday Blitz November 16 2021"]
[White "Drygalov, Sergey"]
[Black "Arakhamia-Grant, Ketevan"]
[WhiteFideId "24171743"]
[BlackFideId "13600168"]
[WhiteElo "2514"]
[BlackElo "2177"]
[Result "1-0"]
[Round "04"]
[TimeControl "180+1"]
[Date "2021.11.16"]
[WhiteClock "0:02:15"]
[BlackClock "0:01:11"]

1. d4 {[%clk 0:03:00]}  Nf6 {[%clk 0:02:58]} 2. c4 {[%clk 0:03:00]}  g6 {[%clk 0:02:58]} 3. Nf3 {[%clk 0:03:00]}  Bg7 {[%clk 0:02:59]} 4. g3 {[%clk 0:03:00]}  O-O {[%clk 0:02:59]} 5. Bg2 {[%clk 0:03:01]}  d6 {[%clk 0:02:59]} 6. O-O {[%clk 0:03:02]}  Nc6 {[%clk 0:02:59]} 7. Nc3 {[%clk 0:03:02]}  a6 {[%clk 0:02:57]} 8. Bf4 {[%clk 0:03:01]}  e6 {[%clk 0:02:52]} 9. Qd2 {[%clk 0:03:00]}  Rb8 {[%clk 0:02:49]} 10. Rac1 {[%clk 0:02:55]}  Ne7 {[%clk 0:02:48]} 11. Bh6 {[%clk 0:02:53]}  b5 {[%clk 0:02:44]} 12. Bxg7 {[%clk 0:02:53]}  Kxg7 {[%clk 0:02:45]} 13. b3 {[%clk 0:02:51]}  b4 {[%clk 0:02:41]} 14. Na4 {[%clk 0:02:48]}  Ne4 {[%clk 0:02:37]} 15. Qc2 {[%clk 0:02:48]}  f5 {[%clk 0:02:37]} 16. Nd2 {[%clk 0:02:47]}  Nf6 {[%clk 0:02:28]} 17. e4 {[%clk 0:02:46]}  Bb7 {[%clk 0:02:17]} 18. d5 {[%clk 0:02:46]}  e5 {[%clk 0:02:13]} 19. f3 {[%clk 0:02:41]}  c5 {[%clk 0:02:10]} 20. f4 {[%clk 0:02:35]}  exf4 {[%clk 0:01:50]} 21. Rxf4 {[%clk 0:02:26]}  Nh5 {[%clk 0:01:47]} 22. Rf2 {[%clk 0:02:23]}  Bc8 {[%clk 0:01:44]} 23. Rcf1 {[%clk 0:02:22]}  Bd7 {[%clk 0:01:40]} 24. Nb2 {[%clk 0:02:22]}  Qa5 {[%clk 0:01:34]} 25. Nd3 {[%clk 0:02:19]}  Qc7 {[%clk 0:01:28]} 26. Qb2+ {[%clk 0:02:18]}  Kg8 {[%clk 0:01:28]} 27. e5 {[%clk 0:02:18]}  dxe5 {[%clk 0:01:25]} 28. Qxe5 {[%clk 0:02:16]}  Qxe5 {[%clk 0:01:23]} 29. Nxe5 {[%clk 0:02:17]}  Be8 {[%clk 0:01:22]} 30. Re1 {[%clk 0:02:16]}  Rd8 {[%clk 0:01:20]} 31. Nd3 {[%clk 0:02:15]}  Nc8 {[%clk 0:01:14]} 32. Nxc5 {[%clk 0:02:15]}  a5 {[%clk 0:01:11]} 33. Ne6 {[%clk 0:02:15]} 1-0


[Site "https://www.chess.com"]

[Event "Titled Tuesday Blitz November 16 2021"]
[White "FGHSMN"]
[Black "Durarbayli, Vasif"]
[BlackFideId "13402935"]
[WhiteElo "2666"]
[BlackElo "2522"]
[Result "1-0"]
[Round "04"]
[TimeControl "180+1"]
[Date "2021.11.16"]
[WhiteClock "0:00:21"]
[BlackClock "0:00:02"]

1. e4 {[%clk 0:03:00]}  c5 {[%clk 0:02:59]} 2. Nf3 {[%clk 0:03:00]}  d6 {[%clk 0:02:59]} 3. d4 {[%clk 0:03:00]}  cxd4 {[%clk 0:03:00]} 4. Nxd4 {[%clk 0:03:01]}  Nf6 {[%clk 0:03:01]} 5. Nc3 {[%clk 0:03:01]}  Nc6 {[%clk 0:03:01]} 6. Bg5 {[%clk 0:03:01]}  Qb6 {[%clk 0:03:02]} 7. Nb3 {[%clk 0:02:56]}  a6 {[%clk 0:02:58]} 8. Be3 {[%clk 0:02:56]}  Qc7 {[%clk 0:02:57]} 9. Be2 {[%clk 0:02:56]}  e6 {[%clk 0:02:57]} 10. O-O {[%clk 0:02:55]}  Be7 {[%clk 0:02:55]} 11. a4 {[%clk 0:02:55]}  b6 {[%clk 0:02:49]} 12. Nd2 {[%clk 0:02:53]}  Bb7 {[%clk 0:02:45]} 13. Nc4 {[%clk 0:02:52]}  Nd7 {[%clk 0:02:45]} 14. Qd2 {[%clk 0:02:49]}  Nce5 {[%clk 0:02:42]} 15. Nxe5 {[%clk 0:02:47]}  dxe5 {[%clk 0:02:42]} 16. Rfd1 {[%clk 0:02:12]}  Rc8 {[%clk 0:02:17]} 17. a5 {[%clk 0:02:06]}  bxa5 {[%clk 0:01:39]} 18. Rxa5 {[%clk 0:02:03]}  Nc5 {[%clk 0:01:32]} 19. b4 {[%clk 0:01:53]}  Rd8 {[%clk 0:01:23]} 20. Rxc5 {[%clk 0:01:46]}  Bxc5 {[%clk 0:00:57]} 21. Qxd8+ {[%clk 0:01:45]}  Qxd8 {[%clk 0:00:58]} 22. Rxd8+ {[%clk 0:01:46]}  Kxd8 {[%clk 0:00:59]} 23. Bxc5 {[%clk 0:01:46]}  Kc7 {[%clk 0:00:58]} 24. f3 {[%clk 0:01:43]}  Rd8 {[%clk 0:00:56]} 25. Bd3 {[%clk 0:01:35]}  Ra8 {[%clk 0:00:49]} 26. Kf2 {[%clk 0:01:31]}  Bc6 {[%clk 0:00:50]} 27. Ke3 {[%clk 0:01:30]}  f6 {[%clk 0:00:50]} 28. Bc4 {[%clk 0:01:24]}  Kd7 {[%clk 0:00:49]} 29. Bb3 {[%clk 0:01:20]}  Rc8 {[%clk 0:00:46]} 30. Na4 {[%clk 0:01:18]}  Rb8 {[%clk 0:00:39]} 31. Nb6+ {[%clk 0:01:15]}  Kc7 {[%clk 0:00:39]} 32. Nc4 {[%clk 0:01:12]}  Kd7 {[%clk 0:00:40]} 33. Na5 {[%clk 0:01:08]}  Ba8 {[%clk 0:00:39]} 34. Bc4 {[%clk 0:01:07]}  f5 {[%clk 0:00:27]} 35. Bxa6 {[%clk 0:01:06]}  f4+ {[%clk 0:00:27]} 36. Kd2 {[%clk 0:01:02]}  g5 {[%clk 0:00:28]} 37. b5 {[%clk 0:00:57]}  g4 {[%clk 0:00:24]} 38. b6 {[%clk 0:00:57]}  Bc6 {[%clk 0:00:24]} 39. b7 {[%clk 0:00:55]}  Bxb7 {[%clk 0:00:18]} 40. Bxb7 {[%clk 0:00:54]}  g3 {[%clk 0:00:15]} 41. h3 {[%clk 0:00:52]}  Kc7 {[%clk 0:00:12]} 42. Ke2 {[%clk 0:00:47]}  h5 {[%clk 0:00:09]} 43. Ba7 {[%clk 0:00:29]}  Rd8 {[%clk 0:00:09]} 44. Bc6 {[%clk 0:00:28]}  h4 {[%clk 0:00:05]} 45. Bb5 {[%clk 0:00:22]}  Ra8 {[%clk 0:00:05]} 46. Nc6 {[%clk 0:00:22]}  Kb7 {[%clk 0:00:06]} 47. c4 {[%clk 0:00:19]}  Kc7 {[%clk 0:00:04]} 48. Kd3 {[%clk 0:00:19]}  Kb7 {[%clk 0:00:04]} 49. Kc3 {[%clk 0:00:19]}  Kc7 {[%clk 0:00:05]} 50. Kb4 {[%clk 0:00:20]}  Kb7 {[%clk 0:00:05]} 51. Ka5 {[%clk 0:00:21]}  Rg8 {[%clk 0:00:02]} 52. c5 {[%clk 0:00:20]}  Ra8 {[%clk 0:00:01]} 53. Kb4 {[%clk 0:00:20]}  Rg8 {[%clk 0:00:02]} 54. Bb6 {[%clk 0:00:20]}  Ra8 {[%clk 0:00:02]} 55. Na5+ {[%clk 0:00:21]}  Kc8 {[%clk 0:00:02]} 56. c6 {[%clk 0:00:21]} 1-0


[Site "https://www.chess.com"]

[Event "Titled Tuesday Blitz November 16 2021"]
[White "Gegenfurtner, Juergen"]
[Black "Shubin, Kirill"]
[WhiteFideId "24632147"]
[BlackFideId "34119962"]
[WhiteElo "2398"]
[BlackElo "2501"]
[Result "0-1"]
[Round "04"]
[TimeControl "180+1"]
[Date "2021.11.16"]
[WhiteClock "0:00:13"]
[BlackClock "0:00:21"]

1. d4 {[%clk 0:03:00]}  e6 {[%clk 0:02:59]} 2. c4 {[%clk 0:03:00]}  Nf6 {[%clk 0:02:59]} 3. Nc3 {[%clk 0:03:01]}  Bb4 {[%clk 0:02:59]} 4. a3 {[%clk 0:03:01]}  Bxc3+ {[%clk 0:02:58]} 5. bxc3 {[%clk 0:03:02]}  c5 {[%clk 0:02:52]} 6. f3 {[%clk 0:03:03]}  b6 {[%clk 0:02:48]} 7. e4 {[%clk 0:03:03]}  O-O {[%clk 0:02:48]} 8. Bd3 {[%clk 0:03:03]}  Bb7 {[%clk 0:02:44]} 9. Be3 {[%clk 0:03:01]}  d6 {[%clk 0:02:42]} 10. Ne2 {[%clk 0:03:00]}  Nc6 {[%clk 0:02:41]} 11. g4 {[%clk 0:02:55]}  Na5 {[%clk 0:02:37]} 12. Ng3 {[%clk 0:02:55]}  Ba6 {[%clk 0:02:28]} 13. Qe2 {[%clk 0:02:55]}  Rc8 {[%clk 0:02:18]} 14. d5 {[%clk 0:02:33]}  Nd7 {[%clk 0:02:09]} 15. f4 {[%clk 0:02:27]}  Qh4 {[%clk 0:02:05]} 16. O-O {[%clk 0:02:24]}  Nf6 {[%clk 0:01:53]} 17. g5 {[%clk 0:02:03]}  Ng4 {[%clk 0:01:50]} 18. Ra2 {[%clk 0:01:59]}  Bxc4 {[%clk 0:01:33]} 19. Bxc4 {[%clk 0:01:55]}  Nxc4 {[%clk 0:01:34]} 20. Bc1 {[%clk 0:01:49]}  b5 {[%clk 0:01:25]} 21. Kg2 {[%clk 0:00:39]}  Qxh2+ {[%clk 0:00:44]} 22. Kf3 {[%clk 0:00:39]}  Nce5+ {[%clk 0:00:28]} 23. fxe5 {[%clk 0:00:37]}  Nxe5+ {[%clk 0:00:29]} 24. Kf4 {[%clk 0:00:20]}  Qh4+ {[%clk 0:00:28]} 25. Ke3 {[%clk 0:00:21]}  Qxg3+ {[%clk 0:00:28]} 26. Kd2 {[%clk 0:00:21]}  exd5 {[%clk 0:00:28]} 27. Kd1 {[%clk 0:00:17]}  dxe4 {[%clk 0:00:24]} 28. Rd2 {[%clk 0:00:16]}  Nc4 {[%clk 0:00:22]} 29. Rd5 {[%clk 0:00:16]}  Qxc3 {[%clk 0:00:20]} 30. g6 {[%clk 0:00:14]}  fxg6 {[%clk 0:00:19]} 31. Rxf8+ {[%clk 0:00:15]}  Rxf8 {[%clk 0:00:20]} 32. Qxe4 {[%clk 0:00:14]}  Rf1+ {[%clk 0:00:20]} 33. Ke2 {[%clk 0:00:15]}  Re1+ {[%clk 0:00:20]} 34. Kf2 {[%clk 0:00:13]}  Rxe4 {[%clk 0:00:21]} 0-1


[Site "https://www.chess.com"]

[Event "Titled Tuesday Blitz November 16 2021"]
[White "Goltsev, Dmitry"]
[Black "Pranav, V"]
[WhiteFideId "24176710"]
[BlackFideId "25060783"]
[WhiteElo "2259"]
[BlackElo "2351"]
[Result "0-1"]
[Round "04"]
[TimeControl "180+1"]
[Date "2021.11.16"]
[WhiteClock "0:00:02"]
[BlackClock "0:00:17"]

1. e4 {[%clk 0:02:56]}  e5 {[%clk 0:03:00]} 2. Nf3 {[%clk 0:02:56]}  Nc6 {[%clk 0:03:00]} 3. Bb5 {[%clk 0:02:52]}  a6 {[%clk 0:03:00]} 4. Ba4 {[%clk 0:02:52]}  Nf6 {[%clk 0:03:00]} 5. O-O {[%clk 0:02:53]}  b5 {[%clk 0:03:01]} 6. Bb3 {[%clk 0:02:53]}  Bc5 {[%clk 0:03:02]} 7. Nxe5 {[%clk 0:02:52]}  Nxe5 {[%clk 0:03:02]} 8. d4 {[%clk 0:02:52]}  Bxd4 {[%clk 0:03:02]} 9. Qxd4 {[%clk 0:02:53]}  d6 {[%clk 0:03:03]} 10. c3 {[%clk 0:02:54]}  c5 {[%clk 0:03:02]} 11. Qd1 {[%clk 0:02:50]}  O-O {[%clk 0:03:02]} 12. Bg5 {[%clk 0:02:49]}  h6 {[%clk 0:03:02]} 13. Bxf6 {[%clk 0:02:49]}  Qxf6 {[%clk 0:03:03]} 14. Bd5 {[%clk 0:02:50]}  Rb8 {[%clk 0:02:56]} 15. f4 {[%clk 0:02:50]}  Ng4 {[%clk 0:02:53]} 16. Qe2 {[%clk 0:02:45]}  Qh4 {[%clk 0:02:51]} 17. h3 {[%clk 0:02:42]}  Nf6 {[%clk 0:02:51]} 18. Nd2 {[%clk 0:02:25]}  Nxd5 {[%clk 0:02:44]} 19. exd5 {[%clk 0:02:26]}  Bb7 {[%clk 0:02:44]} 20. Qd3 {[%clk 0:02:18]}  Rfe8 {[%clk 0:02:22]} 21. Ne4 {[%clk 0:02:15]}  Rbd8 {[%clk 0:02:22]} 22. b3 {[%clk 0:01:58]}  Bc8 {[%clk 0:02:14]} 23. Ng3 {[%clk 0:01:38]}  c4 {[%clk 0:02:03]} 24. bxc4 {[%clk 0:01:20]}  bxc4 {[%clk 0:02:04]} 25. Qf3 {[%clk 0:01:20]}  Re7 {[%clk 0:02:04]} 26. Rfe1 {[%clk 0:01:19]}  Rde8 {[%clk 0:02:04]} 27. Rxe7 {[%clk 0:01:19]}  Qxe7 {[%clk 0:01:57]} 28. Kh2 {[%clk 0:01:14]}  Bb7 {[%clk 0:01:29]} 29. Rb1 {[%clk 0:01:12]}  Bc8 {[%clk 0:01:29]} 30. Rb6 {[%clk 0:01:10]}  Qe1 {[%clk 0:01:18]} 31. Qf1 {[%clk 0:00:55]}  Qxc3 {[%clk 0:01:11]} 32. Rxd6 {[%clk 0:00:55]}  Qd2 {[%clk 0:00:53]} 33. Qxc4 {[%clk 0:00:51]}  h5 {[%clk 0:00:42]} 34. Nxh5 {[%clk 0:00:42]}  Bf5 {[%clk 0:00:41]} 35. Ng3 {[%clk 0:00:39]}  Bb1 {[%clk 0:00:29]} 36. Rxa6 {[%clk 0:00:20]}  Rb8 {[%clk 0:00:20]} 37. Rc6 {[%clk 0:00:16]}  Rb2 {[%clk 0:00:20]} 38. Rc8+ {[%clk 0:00:13]}  Kh7 {[%clk 0:00:19]} 39. Qf1 {[%clk 0:00:13]}  Bd3 {[%clk 0:00:19]} 40. Qg1 {[%clk 0:00:11]}  Qxf4 {[%clk 0:00:19]} 41. Rc3 {[%clk 0:00:09]}  Be4 {[%clk 0:00:17]} 42. h4 {[%clk 0:00:02]}  Qxh4# {[%clk 0:00:17]} 0-1


[Site "https://www.chess.com"]

[Event "Titled Tuesday Blitz November 16 2021"]
[White "Holt, Conrad"]
[Black "Tillyaev, Ulugbek"]
[WhiteFideId "2034387"]
[BlackFideId "14202441"]
[WhiteElo "2586"]
[BlackElo "2341"]
[Result "0-1"]
[Round "04"]
[TimeControl "180+1"]
[Date "2021.11.16"]
[WhiteClock "0:00:01"]
[BlackClock "0:00:43"]

1. d4 {[%clk 0:03:00]}  Nf6 {[%clk 0:02:59]} 2. c4 {[%clk 0:03:01]}  e5 {[%clk 0:02:59]} 3. dxe5 {[%clk 0:02:59]}  Ng4 {[%clk 0:02:59]} 4. Bf4 {[%clk 0:02:58]}  Nc6 {[%clk 0:02:58]} 5. Nf3 {[%clk 0:02:58]}  Bb4+ {[%clk 0:02:58]} 6. Nbd2 {[%clk 0:02:55]}  Qe7 {[%clk 0:02:56]} 7. a3 {[%clk 0:02:54]}  Ngxe5 {[%clk 0:02:55]} 8. Nxe5 {[%clk 0:02:55]}  Nxe5 {[%clk 0:02:53]} 9. e3 {[%clk 0:02:55]}  Bxd2+ {[%clk 0:02:44]} 10. Qxd2 {[%clk 0:02:56]}  d6 {[%clk 0:02:44]} 11. Be2 {[%clk 0:02:49]}  a5 {[%clk 0:02:39]} 12. O-O {[%clk 0:02:46]}  O-O {[%clk 0:02:39]} 13. Qc3 {[%clk 0:02:33]}  b6 {[%clk 0:02:37]} 14. b3 {[%clk 0:02:29]}  Bb7 {[%clk 0:02:36]} 15. Rfe1 {[%clk 0:02:29]}  Rfe8 {[%clk 0:02:31]} 16. Bg3 {[%clk 0:02:27]}  Qf6 {[%clk 0:02:26]} 17. Rac1 {[%clk 0:02:24]}  Qg6 {[%clk 0:02:23]} 18. f3 {[%clk 0:02:19]}  h5 {[%clk 0:02:15]} 19. e4 {[%clk 0:02:16]}  Qf6 {[%clk 0:02:12]} 20. h4 {[%clk 0:01:50]}  Re6 {[%clk 0:02:11]} 21. Qd2 {[%clk 0:01:42]}  Qg6 {[%clk 0:01:46]} 22. Qg5 {[%clk 0:01:40]}  Qh7 {[%clk 0:01:44]} 23. Qf5 {[%clk 0:01:38]}  Qxf5 {[%clk 0:01:37]} 24. exf5 {[%clk 0:01:38]}  Re7 {[%clk 0:01:23]} 25. Bf1 {[%clk 0:01:17]}  Rae8 {[%clk 0:01:22]} 26. Kf2 {[%clk 0:01:10]}  f6 {[%clk 0:01:11]} 27. Bf4 {[%clk 0:01:07]}  Bc8 {[%clk 0:01:09]} 28. Bxe5 {[%clk 0:00:57]}  Rxe5 {[%clk 0:00:58]} 29. Rxe5 {[%clk 0:00:50]}  Rxe5 {[%clk 0:00:59]} 30. g4 {[%clk 0:00:50]}  hxg4 {[%clk 0:00:58]} 31. fxg4 {[%clk 0:00:50]}  g6 {[%clk 0:00:55]} 32. fxg6 {[%clk 0:00:14]}  Bxg4 {[%clk 0:00:54]} 33. b4 {[%clk 0:00:11]}  axb4 {[%clk 0:00:51]} 34. axb4 {[%clk 0:00:11]}  Kg7 {[%clk 0:00:50]} 35. Ra1 {[%clk 0:00:01]}  Kxg6 {[%clk 0:00:49]} 36. Ra7 {[%clk 0:00:01]}  Re7 {[%clk 0:00:49]} 37. Bd3+ {[%clk 0:00:01]}  Kh5 {[%clk 0:00:45]} 38. Ra8 {[%clk 0:00:01]}  Kxh4 {[%clk 0:00:43]} 0-1


[Site "https://www.chess.com"]